[Event "1er Festival international de Cassis 2022"]
[Site "Cassis"]
[Date "2022.05.28"]
[Round "5.8"]
[White "Bassini, Emile"]
[Black "Bonnafous, Michel"]
[Result "1-0"]
[TimeControl "1 h 30 + 30 s"]
[WhiteElo "2221"]
[BlackElo "1915"]

1. d4 {[%clk 01:28:36]} {[%emt 00:02:22]} f5 {[%clk 01:30:40]} {[%emt
00:00:21]} 2. c4 {[%clk 01:28:59]} {[%emt 00:00:07]} Nf6 {[%clk 01:30:47]}
{[%emt 00:00:24]} 3. Nf3 {[%clk 01:29:23]} {[%emt 00:00:05]} d6 {[%clk
01:29:39]} {[%emt 00:01:39]} 4. g3 {[%clk 01:29:05]} {[%emt 00:00:47]} g6
{[%clk 01:29:40]} {[%emt 00:00:30]} 5. Bg2 {[%clk 01:29:28]} {[%emt 00:00:07]}
Bg7 {[%clk 01:30:06]} {[%emt 00:00:05]} 6. O-O {[%clk 01:29:53]} {[%emt
00:00:05]} O-O {[%clk 01:30:32]} {[%emt 00:00:04]} 7. Nc3 {[%clk 01:30:19]}
{[%emt 00:00:04]} Nc6 {[%clk 01:30:47]} {[%emt 00:00:16]} 8. d5 {[%clk
01:30:39]} {[%emt 00:00:09]} Ne5 {[%clk 01:31:05]} {[%emt 00:00:12]} 9. Qb3
{[%clk 01:29:26]} {[%emt 00:01:42]} Ned7 {[%clk 01:27:50]} {[%emt 00:03:46]} 10.
Be3 {[%clk 01:24:29]} {[%emt 00:05:27]} Ng4 {[%clk 01:16:01]} {[%emt 00:12:19]}
11. Bd4 {[%clk 01:24:43]} {[%emt 00:00:16]} Bxd4 {[%clk 01:15:01]} {[%emt
00:01:31]} 12. Nxd4 {[%clk 01:25:05]} {[%emt 00:00:07]} Nc5 {[%clk 01:15:13]}
{[%emt 00:00:18]} 13. Qc2 {[%clk 01:25:20]} {[%emt 00:00:14]} e5 {[%clk
01:12:25]} {[%emt 00:03:19]} 14. dxe6 {[%clk 01:25:22]} {[%emt 00:00:27]} c6
{[%clk 01:12:36]} {[%emt 00:00:19]} 15. Rad1 {[%clk 01:21:49]} {[%emt
00:04:03]} Nxe6 {[%clk 01:12:47]} {[%emt 00:00:20]} 16. Qd2 {[%clk 01:10:45]}
{[%emt 00:11:33]} Qf6 {[%clk 01:08:13]} {[%emt 00:05:05]} 17. Nxe6 {[%clk
01:06:05]} {[%emt 00:05:09]} Bxe6 {[%clk 01:07:55]} {[%emt 00:00:48]} 18. Qxd6
{[%clk 01:06:29]} {[%emt 00:00:07]} Bxc4 {[%clk 01:07:56]} {[%emt 00:00:29]} 19.
Qb4 {[%clk 00:58:54]} {[%emt 00:08:04]} Qf7 {[%clk 01:01:53]} {[%emt 00:06:33]}
20. Rd4 {[%clk 00:55:21]} {[%emt 00:04:02]} Be6 {[%clk 01:01:00]} {[%emt
00:01:23]} 21. Rfd1 {[%clk 00:54:51]} {[%emt 00:01:01]} Nf6 {[%clk 01:00:42]}
{[%emt 00:00:48]} 22. b3 {[%clk 00:51:18]} {[%emt 00:04:03]} Rac8 {[%clk
00:49:01]} {[%emt 00:12:12]} 23. Rd6 {[%clk 00:46:24]} {[%emt 00:05:24]} Rc7
{[%clk 00:39:27]} {[%emt 00:10:04]} 24. Qa5 {[%clk 00:43:30]} {[%emt 00:03:24]}
Re7 {[%clk 00:32:18]} {[%emt 00:07:39]} 25. Qxa7 {[%clk 00:43:04]} {[%emt
00:00:56]} Ree8 {[%clk 00:27:59]} {[%emt 00:04:50]} 26. Qd4 {[%clk 00:40:18]}
{[%emt 00:03:15]} Qe7 {[%clk 00:27:12]} {[%emt 00:01:17]} 27. Qe5 {[%clk
00:35:13]} {[%emt 00:05:36]} Ng4 {[%clk 00:26:01]} {[%emt 00:01:41]} 28. Qf4
{[%clk 00:34:01]} {[%emt 00:01:40]} Nf6 {[%clk 00:26:05]} {[%emt 00:00:26]} 29.
Bf3 {[%clk 00:33:46]} {[%emt 00:00:45]} Rd8 {[%clk 00:23:37]} {[%emt 00:02:58]}
30. h4 {[%clk 00:28:32]} {[%emt 00:05:45]} Rxd6 {[%clk 00:22:47]} {[%emt
00:01:20]} 31. Qxd6 {[%clk 00:28:55]} {[%emt 00:00:07]} Qxd6 {[%clk 00:23:00]}
{[%emt 00:00:17]} 32. Rxd6 {[%clk 00:29:20]} {[%emt 00:00:05]} Kf7 {[%clk
00:23:13]} {[%emt 00:00:17]} 33. Rd4 {[%clk 00:29:25]} {[%emt 00:00:26]} Re8
{[%clk 00:21:23]} {[%emt 00:02:20]} 34. Ra4 {[%clk 00:27:24]} {[%emt 00:02:31]}
Re7 {[%emt 00:00:41]} 35. Ra7 {[%clk 00:27:41]} Rd7 {[%clk 00:20:19]} {[%emt
00:01:35]} 36. Kf1 {[%clk 00:25:47]} {[%emt 00:02:24]} Ke7 {[%clk 00:20:31]}
{[%emt 00:00:19]} 37. Ke1 {[%clk 00:26:11]} {[%emt 00:00:06]} Kd6 {[%clk
00:20:39]} {[%emt 00:00:22]} 38. Ra8 {[%clk 00:21:10]} {[%emt 00:05:32]} Bd5
{[%clk 00:15:52]} {[%emt 00:05:16]} 39. Nxd5 {[%clk 00:19:59]} {[%emt
00:01:41]} cxd5 {[%clk 00:16:04]} {[%emt 00:00:18]} 40. Rc8 {[%clk 00:17:30]}
{[%emt 00:02:59]} Re7 {[%clk 00:13:34]} {[%emt 00:03:00]} 41. Kd2 {[%clk
00:17:15]} {[%emt 00:00:44]} Nd7 {[%clk 00:12:56]} {[%emt 00:01:08]} 42. Rd8
{[%clk 00:15:47]} {[%emt 00:01:59]} Kc7 {[%clk 00:12:54]} {[%emt 00:00:31]} 43.
Rg8 {[%clk 00:13:43]} {[%emt 00:02:34]} Kd6 {[%clk 00:12:53]} {[%emt 00:00:32]}
44. h5 {[%clk 00:12:53]} {[%emt 00:01:20]} Nf6 {[%clk 00:12:52]} {[%emt
00:00:31]} 45. Rf8 {[%clk 00:13:09]} {[%emt 00:00:14]} Ke6 {[%clk 00:12:23]}
{[%emt 00:00:59]} 46. hxg6 {[%clk 00:12:52]} {[%emt 00:00:48]} hxg6 {[%clk
00:12:44]} {[%emt 00:00:09]} 47. Rc8 {[%clk 00:12:19]} {[%emt 00:01:02]} Rd7
{[%clk 00:09:48]} {[%emt 00:03:26]} 48. Rc5 {[%clk 00:11:13]} {[%emt 00:01:36]}
Ng8 {[%clk 00:09:47]} {[%emt 00:00:31]} 49. a4 {[%clk 00:09:27]} {[%emt
00:02:16]} Ne7 {[%clk 00:10:06]} {[%emt 00:00:11]} 50. a5 {[%clk 00:09:16]}
{[%emt 00:00:41]} Rd6 {[%clk 00:06:29]} {[%emt 00:04:06]} 51. Rb5 {[%clk
00:08:47]} {[%emt 00:01:00]} Nc6 {[%clk 00:05:07]} {[%emt 00:01:53]} 52. b4
{[%clk 00:08:18]} {[%emt 00:00:59]} Nd8 {[%clk 00:03:30]} {[%emt 00:02:06]} 53.
Kd3 {[%clk 00:07:55]} {[%emt 00:00:52]} Ke5 {[%clk 00:03:40]} {[%emt 00:00:20]}
54. Bg2 {[%clk 00:07:18]} {[%emt 00:01:07]} Ke6 {[%clk 00:01:15]} {[%emt
00:02:56]} 55. f4 {[%clk 00:07:35]} {[%emt 00:00:12]} Rd7 {[%clk 00:01:25]}
{[%emt 00:00:20]} 56. Rb6+ {[%clk 00:07:14]} {[%emt 00:00:51]} Rd6 {[%clk
00:01:41]} {[%emt 00:00:15]} 57. Kd4 {[%emt 00:01:48]} 1-0

[Event "1er Festival international de Cassis 2022"]
[Site "Cassis"]
[Date "2022.05.28"]
[Round "6.1"]
[White "Gozzoli, Yannick"]
[Black "Sivuk, Vitaly"]
[Result "1/2-1/2"]
[TimeControl "1 h 30 + 30 s"]
[WhiteElo "2591"]
[BlackElo "2529"]

1. d4 {[%clk 01:30:27]} {[%emt 00:00:31]} Nf6 {[%clk 01:30:50]} {[%emt
00:00:10]} 2. c4 {[%clk 01:30:44]} {[%emt 00:00:13]} g6 {[%clk 01:31:11]}
{[%emt 00:00:09]} 3. Nc3 {[%clk 01:30:57]} {[%emt 00:00:17]} Bg7 {[%clk
01:31:33]} {[%emt 00:00:08]} 4. e4 {[%clk 01:30:58]} {[%emt 00:00:28]} d6
{[%clk 01:31:56]} {[%emt 00:00:07]} 5. Nf3 {[%clk 01:31:05]} {[%emt 00:00:23]}
O-O {[%clk 01:32:15]} {[%emt 00:00:11]} 6. Be2 {[%clk 01:31:31]} {[%emt
00:00:04]} e5 {[%clk 01:32:33]} {[%emt 00:00:12]} 7. O-O {[%clk 01:31:51]}
{[%emt 00:00:10]} Na6 {[%clk 01:32:54]} {[%emt 00:00:09]} 8. Be3 {[%clk
01:27:38]} {[%emt 00:04:43]} c6 {[%clk 01:33:13]} {[%emt 00:00:10]} 9. Re1
{[%clk 01:27:36]} {[%emt 00:00:32]} exd4 {[%clk 01:33:02]} {[%emt 00:00:42]} 10.
Nxd4 {[%clk 01:27:29]} {[%emt 00:00:37]} Re8 {[%clk 01:31:50]} {[%emt
00:01:40]} 11. f3 {[%clk 01:26:01]} {[%emt 00:01:59]} d5 {[%clk 01:08:56]}
{[%emt 00:23:24]} 12. cxd5 {[%clk 01:20:55]} {[%emt 00:05:36]} Nxd5 {[%clk
01:07:21]} {[%emt 00:02:05]} 13. Nxd5 {[%clk 01:13:11]} {[%emt 00:08:14]} cxd5
{[%clk 01:07:43]} {[%emt 00:00:07]} 14. Bxa6 {[%clk 01:06:57]} {[%emt
00:06:45]} bxa6 {[%clk 01:08:04]} {[%emt 00:00:09]} 15. Nc6 {[%clk 01:06:45]}
{[%emt 00:00:42]} Qc7 {[%clk 01:04:36]} {[%emt 00:03:57]} 16. exd5 {[%clk
01:03:30]} {[%emt 00:03:45]} Bb7 {[%clk 01:03:55]} {[%emt 00:01:10]} 17. Bf2
{[%clk 00:57:04]} {[%emt 00:06:56]} Bxb2 {[%clk 00:58:21]} {[%emt 00:06:03]} 18.
Rb1 {[%clk 00:48:13]} {[%emt 00:09:22]} Bf6 {[%clk 00:58:07]} {[%emt 00:00:44]}
19. Rxe8+ {[%clk 00:39:25]} {[%emt 00:09:18]} Rxe8 {[%clk 00:58:12]} {[%emt
00:00:25]} 20. Qa4 {[%clk 00:39:50]} {[%emt 00:00:06]} Qd7 {[%clk 00:54:21]}
{[%emt 00:04:20]} 21. Qc4 {[%clk 00:40:14]} {[%emt 00:00:06]} Rc8 {[%clk
00:49:38]} {[%emt 00:05:13]} 22. Rc1 {[%clk 00:31:33]} {[%emt 00:09:12]}
1/2-1/2

[Event "1er Festival international de Cassis 2022"]
[Site "Cassis"]
[Date "2022.05.28"]
[Round "6.2"]
[White "Yankelevich, Lev"]
[Black "Philippe, Guillaume"]
[Result "1/2-1/2"]
[TimeControl "1 h 30 + 30 s"]
[WhiteElo "2473"]
[BlackElo "2405"]

1. d4 {[%clk 01:26:18]} {[%emt 00:04:42]} Nf6 {[%clk 01:27:01]} {[%emt
00:04:00]} 2. c4 {[%clk 01:26:40]} {[%emt 00:00:08]} c5 {[%clk 01:27:11]}
{[%emt 00:00:20]} 3. d5 {[%clk 01:26:39]} {[%emt 00:00:30]} g6 {[%clk
01:27:28]} {[%emt 00:00:13]} 4. Nc3 {[%clk 01:27:05]} {[%emt 00:00:04]} Bg7
{[%clk 01:27:51]} {[%emt 00:00:06]} 5. e4 {[%clk 01:27:31]} {[%emt 00:00:03]}
O-O {[%clk 01:27:52]} {[%emt 00:00:29]} 6. e5 {[%clk 01:22:10]} {[%emt
00:05:51]} Ne8 {[%clk 01:28:03]} {[%emt 00:00:20]} 7. h4 {[%clk 01:21:41]}
{[%emt 00:00:58]} Bxe5 {[%clk 01:25:47]} {[%emt 00:02:46]} 8. Bh6 {[%clk
01:22:03]} {[%emt 00:00:08]} Bg7 {[%clk 01:22:55]} {[%emt 00:03:23]} 9. Qd2
{[%clk 01:20:56]} {[%emt 00:01:37]} d6 {[%clk 01:05:36]} {[%emt 00:17:49]} 10.
h5 {[%clk 01:17:37]} {[%emt 00:03:48]} Nd7 {[%clk 01:01:45]} {[%emt 00:04:21]}
11. O-O-O {[%clk 01:13:34]} {[%emt 00:04:32]} Ndf6 {[%clk 00:58:13]} {[%emt
00:04:02]} 12. f3 {[%clk 01:08:19]} {[%emt 00:05:46]} b5 {[%clk 00:56:04]}
{[%emt 00:02:40]} 13. cxb5 {[%clk 01:05:06]} {[%emt 00:03:43]} a6 {[%clk
00:56:25]} {[%emt 00:00:09]} 14. g4 {[%clk 01:05:30]} {[%emt 00:00:05]} axb5
{[%clk 00:56:10]} {[%emt 00:00:46]} 15. Bxb5 {[%clk 01:05:57]} {[%emt
00:00:04]} Bd7 {[%clk 00:54:01]} {[%emt 00:02:39]} 16. Bxd7 {[%clk 00:58:13]}
{[%emt 00:08:14]} Qxd7 {[%clk 00:53:49]} {[%emt 00:00:43]} 17. Nge2 {[%clk
00:57:30]} {[%emt 00:01:12]} Qb7 {[%clk 00:41:31]} {[%emt 00:12:48]} 18. hxg6
{[%clk 00:50:57]} {[%emt 00:07:03]} fxg6 {[%clk 00:41:51]} {[%emt 00:00:10]} 19.
Nf4 {[%clk 00:51:14]} {[%emt 00:00:13]} Rf7 {[%clk 00:38:53]} {[%emt 00:03:28]}
20. Ne6 {[%clk 00:49:09]} {[%emt 00:02:34]} Bxh6 {[%clk 00:39:11]} {[%emt
00:00:13]} 21. Rxh6 {[%clk 00:48:29]} {[%emt 00:01:10]} Nc7 {[%clk 00:37:20]}
{[%emt 00:02:22]} 22. Nf4 {[%clk 00:29:38]} {[%emt 00:19:21]} Nb5 {[%clk
00:33:19]} {[%emt 00:04:31]} 23. Nxb5 {[%clk 00:27:13]} {[%emt 00:02:55]} Qxb5
{[%clk 00:33:44]} {[%emt 00:00:05]} 24. a3 {[%clk 00:27:39]} {[%emt 00:00:04]}
Ra4 {[%clk 00:33:15]} {[%emt 00:00:59]} 25. Ne6 {[%clk 00:26:50]} {[%emt
00:01:19]} c4 {[%clk 00:22:17]} {[%emt 00:11:29]} 26. Qe2 {[%clk 00:10:59]}
{[%emt 00:16:21]} Nxd5 {[%clk 00:20:09]} {[%emt 00:02:38]} 27. Rdh1 {[%clk
00:09:45]} {[%emt 00:01:43]} Nb4 {[%clk 00:09:15]} {[%emt 00:11:24]} 28. axb4
{[%clk 00:07:43]} {[%emt 00:02:32]} Ra1+ {[%clk 00:09:41]} {[%emt 00:00:04]} 29.
Kc2 {[%clk 00:08:10]} {[%emt 00:00:02]} Qa4+ {[%clk 00:09:31]} {[%emt
00:00:40]} 30. Kd2 {[%clk 00:06:20]} {[%emt 00:02:20]} Qxb4+ {[%clk 00:09:57]}
{[%emt 00:00:05]} 31. Ke3 {[%clk 00:06:46]} {[%emt 00:00:03]} Qb6+ {[%clk
00:10:17]} {[%emt 00:00:10]} 32. Nd4 {[%clk 00:06:50]} {[%emt 00:00:26]} Rxh1
{[%clk 00:10:10]} {[%emt 00:00:36]} 33. Rxh1 {[%clk 00:07:16]} {[%emt
00:00:05]} e5 {[%clk 00:10:36]} {[%emt 00:00:05]} 34. Qxc4 {[%clk 00:06:17]}
{[%emt 00:01:28]} exd4+ {[%clk 00:10:58]} {[%emt 00:00:08]} 35. Kf2 {[%clk
00:02:29]} {[%emt 00:04:18]} Qxb2+ {[%clk 00:11:07]} {[%emt 00:00:21]} 36. Qe2
{[%clk 00:02:51]} {[%emt 00:00:08]} Qb3 {[%clk 00:07:43]} {[%emt 00:03:55]} 37.
Rd1 {[%clk 00:02:21]} {[%emt 00:01:00]} Qd5 {[%clk 00:08:06]} {[%emt 00:00:07]}
38. Qd3 {[%clk 00:02:04]} {[%emt 00:00:47]} Qe5 {[%clk 00:06:51]} {[%emt
00:01:45]} 39. Kg2 {[%clk 00:02:03]} {[%emt 00:00:31]} Qf4 {[%clk 00:05:56]}
{[%emt 00:01:24]} 40. Re1 {[%clk 00:02:06]} {[%emt 00:00:27]} d5 {[%clk
00:05:42]} {[%emt 00:00:45]} 41. Re8+ {[%clk 00:02:18]} {[%emt 00:00:18]} Kg7
{[%clk 00:06:03]} {[%emt 00:00:09]} 42. Re2 {[%clk 00:02:42]} {[%emt 00:00:05]}
Rc7 {[%clk 00:05:39]} {[%emt 00:00:54]} 43. Qb5 {[%clk 00:02:16]} {[%emt
00:00:56]} h5 {[%clk 00:03:48]} {[%emt 00:02:22]} 44. gxh5 {[%clk 00:01:59]}
{[%emt 00:00:46]} Qg5+ {[%clk 00:04:00]} {[%emt 00:00:16]} 45. Kf2 {[%clk
00:02:21]} {[%emt 00:00:09]} Qh4+ {[%clk 00:03:42]} {[%emt 00:00:49]} 46. Kg2
{[%clk 00:02:49]} {[%emt 00:00:02]} Qxh5 {[%clk 00:03:22]} {[%emt 00:00:50]} 47.
Qe8 {[%clk 00:02:53]} {[%emt 00:00:25]} Qg5+ {[%clk 00:03:33]} {[%emt
00:00:19]} 48. Kf2 {[%clk 00:03:19]} {[%emt 00:00:05]} Qh4+ {[%clk 00:02:07]}
{[%emt 00:01:55]} 49. Kg2 {[%clk 00:03:48]} {[%emt 00:00:01]} Qg5+ {[%clk
00:01:53]} {[%emt 00:00:44]} 50. Kf2 {[%clk 00:03:48]} {[%emt 00:00:30]} d3
{[%clk 00:01:49]} {[%emt 00:00:35]} 51. Qe5+ {[%clk 00:04:15]} {[%emt
00:00:03]} Qxe5 {[%clk 00:02:07]} {[%emt 00:00:12]} 52. Rxe5 {[%clk 00:04:43]}
Rc2+ {[%clk 00:02:04]} {[%emt 00:00:33]} 53. Kg3 {[%clk 00:05:05]} {[%emt
00:00:09]} Re2 {[%clk 00:01:54]} {[%emt 00:00:40]} 54. Rxd5 {[%clk 00:05:30]}
{[%emt 00:00:05]} d2 {[%clk 00:02:19]} {[%emt 00:00:06]} 55. f4 {[%clk
00:05:33]} {[%emt 00:00:27]} Kf6 {[%clk 00:02:21]} {[%emt 00:00:27]} 56. Kf3
{[%clk 00:06:01]} {[%emt 00:00:02]} Rh2 {[%clk 00:02:30]} {[%emt 00:00:22]} 57.
Kg3 {[%clk 00:06:27]} {[%emt 00:00:03]} Re2 {[%clk 00:02:47]} {[%emt 00:00:13]}
58. Kf3 {[%clk 00:06:56]} {[%emt 00:00:01]} Rh2 {[%clk 00:03:10]} {[%emt
00:00:07]} 59. Ke4 {[%emt 00:00:11]} Ke5+ 1/2-1/2

[Event "1er Festival international de Cassis 2022"]
[Site "Cassis"]
[Date "2022.05.28"]
[Round "6.3"]
[White "Petrosyan, Armen"]
[Black "Movsziszian, Karen"]
[Result "0-1"]
[TimeControl "1 h 30 + 30 s"]
[WhiteElo "2396"]
[BlackElo "2467"]

1. e4 {[%clk 01:30:39]} {[%emt 00:00:20]} g6 {[%clk 01:30:52]} {[%emt
00:00:09]} 2. d4 {[%clk 01:30:57]} {[%emt 00:00:11]} Bg7 {[%clk 01:31:13]}
{[%emt 00:00:10]} 3. Nf3 {[%clk 01:31:18]} {[%emt 00:00:09]} d6 {[%clk
01:31:38]} {[%emt 00:00:05]} 4. Bd3 {[%clk 01:31:39]} {[%emt 00:00:09]} Nf6
{[%clk 01:28:57]} {[%emt 00:03:11]} 5. O-O {[%clk 01:31:04]} {[%emt 00:01:05]}
O-O {[%clk 01:29:24]} {[%emt 00:00:03]} 6. h3 {[%clk 01:30:38]} {[%emt
00:00:56]} Nc6 {[%clk 01:29:35]} {[%emt 00:00:18]} 7. c3 {[%clk 01:30:47]}
{[%emt 00:00:22]} e5 {[%clk 01:30:01]} {[%emt 00:00:04]} 8. Nbd2 {[%clk
01:23:49]} {[%emt 00:07:28]} Nh5 {[%clk 01:28:24]} {[%emt 00:02:07]} 9. dxe5
{[%clk 01:23:08]} {[%emt 00:01:11]} dxe5 {[%clk 01:27:44]} {[%emt 00:01:10]} 10.
Nc4 {[%clk 01:22:12]} {[%emt 00:01:26]} Nf4 {[%clk 01:26:09]} {[%emt 00:02:06]}
11. Bxf4 {[%clk 01:21:30]} {[%emt 00:01:12]} exf4 {[%clk 01:26:36]} {[%emt
00:00:02]} 12. a4 {[%clk 01:21:46]} {[%emt 00:00:14]} Be6 {[%clk 01:25:36]}
{[%emt 00:01:31]} 13. Qc2 {[%clk 01:13:22]} {[%emt 00:08:55]} a5 {[%clk
01:22:06]} {[%emt 00:04:00]} 14. Rad1 {[%clk 01:13:21]} {[%emt 00:00:31]} Qe7
{[%clk 01:22:20]} {[%emt 00:00:15]} 15. Rfe1 {[%clk 01:13:06]} {[%emt
00:00:46]} Rfe8 {[%clk 01:21:12]} {[%emt 00:01:37]} 16. Qb3 {[%clk 01:06:10]}
{[%emt 00:07:26]} b6 {[%clk 01:05:41]} {[%emt 00:16:01]} 17. Qb5 {[%clk
00:59:10]} {[%emt 00:07:31]} Bd7 {[%clk 01:03:22]} {[%emt 00:02:49]} 18. Qg5
{[%clk 00:57:24]} {[%emt 00:02:16]} Qxg5 {[%clk 01:02:35]} {[%emt 00:01:17]} 19.
Nxg5 {[%clk 00:57:50]} {[%emt 00:00:04]} Rad8 {[%clk 00:59:51]} {[%emt
00:03:13]} 20. Bc2 {[%clk 00:56:46]} {[%emt 00:01:35]} h6 {[%clk 00:55:06]}
{[%emt 00:05:16]} 21. Nf3 {[%clk 00:57:08]} {[%emt 00:00:07]} Be6 {[%clk
00:52:19]} {[%emt 00:03:17]} 22. Na3 {[%clk 00:52:39]} {[%emt 00:05:00]} Ne5
{[%clk 00:52:19]} {[%emt 00:00:30]} 23. Nxe5 {[%clk 00:51:36]} {[%emt
00:01:33]} Bxe5 {[%clk 00:51:00]} {[%emt 00:01:49]} 24. Rxd8 {[%clk 00:44:17]}
{[%emt 00:07:50]} Rxd8 {[%clk 00:51:28]} {[%emt 00:00:02]} 25. Rd1 {[%clk
00:44:40]} {[%emt 00:00:07]} Rxd1+ {[%clk 00:51:34]} {[%emt 00:00:25]} 26. Bxd1
{[%clk 00:45:07]} {[%emt 00:00:04]} Kf8 {[%clk 00:50:33]} {[%emt 00:01:31]} 27.
Bg4 {[%clk 00:24:10]} {[%emt 00:21:27]} Bb3 {[%clk 00:50:55]} {[%emt 00:00:07]}
28. Bd7 {[%clk 00:24:37]} {[%emt 00:00:04]} Ke7 {[%clk 00:44:58]} {[%emt
00:06:27]} 29. Bb5 {[%clk 00:25:03]} {[%emt 00:00:05]} Be6 {[%clk 00:45:09]}
{[%emt 00:00:17]} 30. Nc4 {[%clk 00:21:58]} {[%emt 00:03:35]} Bg7 {[%clk
00:45:32]} {[%emt 00:00:07]} 31. f3 {[%clk 00:16:26]} {[%emt 00:06:03]} f5
{[%clk 00:45:36]} {[%emt 00:00:26]} 32. exf5 {[%clk 00:14:32]} {[%emt
00:02:24]} Bxf5 {[%clk 00:43:53]} {[%emt 00:02:13]} 33. Kf2 {[%clk 00:14:58]}
{[%emt 00:00:04]} Ke6 {[%clk 00:42:44]} {[%emt 00:01:38]} 34. Ke2 {[%clk
00:14:59]} {[%emt 00:00:31]} Kd5 {[%clk 00:42:52]} {[%emt 00:00:20]} 35. Nd2
{[%clk 00:15:09]} {[%emt 00:00:21]} g5 {[%clk 00:42:07]} {[%emt 00:01:14]} 36.
Bc4+ {[%clk 00:14:11]} {[%emt 00:01:30]} Ke5 {[%clk 00:35:20]} {[%emt
00:07:17]} 37. Bb3 {[%clk 00:14:08]} {[%emt 00:00:32]} Kd6 {[%clk 00:34:43]}
{[%emt 00:01:06]} 38. Ne4+ {[%clk 00:14:19]} {[%emt 00:00:20]} Kd7 {[%clk
00:34:53]} {[%emt 00:00:19]} 39. Bc4 {[%clk 00:12:41]} {[%emt 00:02:08]} Bf8
{[%clk 00:33:49]} {[%emt 00:01:31]} 40. Bb5+ {[%clk 00:11:39]} {[%emt
00:01:36]} c6 {[%clk 00:34:07]} {[%emt 00:00:12]} 41. Bc4 {[%clk 00:12:01]}
{[%emt 00:00:08]} Be7 {[%emt 00:01:30]} 42. Bf7 {[%clk 00:11:08]} {[%emt
00:00:05]} b5 {[%clk 00:34:26]} {[%emt 00:00:29]} 43. Bb3 {[%clk 00:09:01]}
{[%emt 00:02:37]} Kc7 {[%clk 00:34:26]} {[%emt 00:00:30]} 44. c4 {[%clk
00:03:58]} {[%emt 00:05:33]} Kb6 {[%clk 00:31:32]} {[%emt 00:03:23]} 45. cxb5
{[%clk 00:04:04]} {[%emt 00:00:26]} cxb5 {[%clk 00:32:00]} {[%emt 00:00:02]} 46.
Nc3 {[%clk 00:04:01]} {[%emt 00:00:33]} Kc5 {[%clk 00:29:33]} {[%emt 00:02:57]}
47. axb5 {[%clk 00:02:13]} {[%emt 00:02:18]} Bf6 {[%clk 00:29:57]} {[%emt
00:00:05]} 48. Kd2 {[%clk 00:01:32]} {[%emt 00:01:10]} Bd4 {[%clk 00:24:50]}
{[%emt 00:05:37]} 49. Bc2 {[%clk 00:00:48]} {[%emt 00:01:15]} Bd7 {[%clk
00:25:18]} {[%emt 00:00:01]} 50. b3 {[%clk 00:00:57]} {[%emt 00:00:22]} Kb4
{[%clk 00:24:07]} {[%emt 00:01:38]} 51. Nd5+ {[%clk 00:01:06]} {[%emt
00:00:23]} Kxb5 {[%clk 00:24:23]} {[%emt 00:00:14]} 52. Kd3 {[%clk 00:00:45]}
{[%emt 00:00:52]} Kc5 {[%clk 00:24:36]} {[%emt 00:00:14]} 53. Nc3 {[%clk
00:01:11]} {[%emt 00:00:07]} Bg7 {[%clk 00:23:45]} {[%emt 00:01:20]} 54. Na2
{[%clk 00:00:50]} {[%emt 00:00:52]} Bb5+ {[%clk 00:23:14]} {[%emt 00:01:02]} 55.
Ke4 {[%clk 00:00:59]} {[%emt 00:00:22]} Bf1 {[%clk 00:22:53]} {[%emt 00:00:50]}
56. Kf5 {[%clk 00:01:04]} {[%emt 00:00:26]} Bxg2 {[%clk 00:23:20]} {[%emt
00:00:02]} 57. Kg6 {[%clk 00:01:05]} {[%emt 00:00:29]} Bf8 {[%clk 00:23:45]}
{[%emt 00:00:05]} 58. Kf7 {[%clk 00:01:32]} {[%emt 00:00:04]} Bd6 {[%clk
00:23:58]} {[%emt 00:00:17]} 59. Kg6 {[%clk 00:01:51]} {[%emt 00:00:11]} Bxh3
{[%clk 00:21:46]} {[%emt 00:02:42]} 60. Kxh6 {[%clk 00:02:16]} {[%emt
00:00:06]} g4 {[%clk 00:22:12]} {[%emt 00:00:04]} 61. Bf5 {[%clk 00:02:02]}
{[%emt 00:00:44]} Kd4 {[%clk 00:21:19]} {[%emt 00:01:23]} 62. Kg5 {[%clk
00:02:22]} {[%emt 00:00:10]} Ke3 {[%clk 00:21:28]} {[%emt 00:00:20]} 63. fxg4
{[%clk 00:00:40]} {[%emt 00:02:13]} f3 {[%clk 00:18:55]} {[%emt 00:03:03]} 64.
Nc3 {[%clk 00:01:06]} {[%emt 00:00:05]} Be7+ {[%clk 00:15:30]} {[%emt
00:03:53]} 65. Kg6 {[%clk 00:01:06]} {[%emt 00:00:32]} f2 {[%clk 00:14:57]}
{[%emt 00:01:02]} 66. Nd1+ {[%clk 00:01:21]} {[%emt 00:00:15]} Ke2 {[%clk
00:15:14]} {[%emt 00:00:13]} 67. Nxf2 {[%clk 00:01:47]} {[%emt 00:00:04]} Kxf2
{[%clk 00:15:41]} {[%emt 00:00:03]} 68. Kf7 {[%clk 00:01:53]} {[%emt 00:00:24]}
Bb4 {[%clk 00:14:42]} {[%emt 00:01:27]} 69. Ke6 {[%clk 00:02:16]} {[%emt
00:00:07]} Ke3 {[%clk 00:14:59]} {[%emt 00:00:13]} 70. Kd5 {[%clk 00:02:11]}
{[%emt 00:00:36]} Kd2 {[%clk 00:15:17]} {[%emt 00:00:09]} 71. Kd4 {[%clk
00:02:18]} {[%emt 00:00:25]} Kc1 {[%clk 00:15:03]} {[%emt 00:00:43]} 72. Be6
{[%clk 00:01:46]} {[%emt 00:01:03]} Kb2 {[%clk 00:15:27]} {[%emt 00:00:06]} 73.
Kd3 {[%clk 00:02:10]} {[%emt 00:00:06]} Bf1+ {[%clk 00:15:41]} {[%emt
00:00:15]} 74. Kd4 {[%clk 00:02:35]} {[%emt 00:00:05]} Bd2 {[%clk 00:15:13]}
{[%emt 00:00:57]} 75. Bc4 {[%clk 00:01:58]} {[%emt 00:01:08]} Bg2 {[%clk
00:10:59]} {[%emt 00:04:44]} 76. Be6 {[%clk 00:00:51]} {[%emt 00:01:36]} Bf3
{[%clk 00:11:05]} {[%emt 00:00:24]} 77. Kd3 {[%clk 00:00:34]} {[%emt 00:00:49]}
Bc3 {[%clk 00:10:22]} {[%emt 00:01:12]} 78. g5 {[%clk 00:00:55]} {[%emt
00:00:09]} Bd1 {[%clk 00:10:49]} {[%emt 00:00:02]} 79. Ke4 {[%clk 00:00:38]}
{[%emt 00:00:48]} Bxb3 {[%clk 00:10:53]} {[%emt 00:00:26]} 80. Bd7 {[%clk
00:01:06]} {[%emt 00:00:03]} a4 {[%clk 00:10:44]} {[%emt 00:00:38]} 81. Kd4
{[%emt 00:00:34]} 0-1